lending/lending_fUSD_20260104
["ID","MTS","AMOUNT","RATE_DAILY","PERIOD"]
[400395906,1767509771335,-283.9562455,0.0004714,110]
[400395907,1767509771411,-157.8,0.000472,30]
[400395908,1767509771485,-200.0,0.00047203,120]
[400395909,1767509771559,-12798.99009435,0.00047247,120]
[400395910,1767509771638,-1420.23,0.0004725,120]
[400395911,1767509771707,-238659.2576,0.00047444,30]
[400395912,1767509771785,-500.0,0.000475,120]
[400395913,1767509771856,-327.84407195,0.000475,120]
[400395914,1767509771923,-153.0,0.000476,120]
[400395915,1767509771992,-673.00357204,0.000478,120]
[400395916,1767509772061,-2000.0,0.00047894,31]
[400395917,1767509772124,-152.0,0.000479,120]
[400395918,1767509772190,-23261.32,0.000479,120]
[400395919,1767509772257,-294.12752051,0.00047906,113]
[400395920,1767509772327,-300.0,0.00047945,120]
[400395921,1767509772398,-989.58181763,0.00048,120]
[400395922,1767509772624,-2502.93243659,0.00048,120]
[400395923,1767509772699,-670.11199192,0.00048,120]
[400395924,1767509772776,-500.0,0.00048,120]
[400395925,1767509772854,-200.0,0.00048,120]
[400395926,1767509772922,-150.0,0.00048,120]
[400395927,1767509772997,-1666.0,0.00048,120]
[400395928,1767509773071,-500.0,0.00048,120]
[400395929,1767509773135,-1000.0,0.00048,120]
[400395930,1767509773196,-245.13678003,0.00048,120]
[400395931,1767509773260,-3259.37996034,0.00048,120]
[400395932,1767509773326,-5000.0,0.00048,120]
[400395933,1767509773395,-3000.0,0.00048,120]
[400395934,1767509773465,-1929.64100893,0.00048,120]
[400395935,1767509773531,-5111.0,0.00048,30]
[400395936,1767509773607,-797.0,0.00048,120]
[400395937,1767509773682,-5000.0,0.00048,31]
[400395938,1767509773754,-308.52985206,0.00048,120]
[400395939,1767509773825,-306.97327213,0.00048,120]
[400395940,1767509773894,-154.38936761,0.00048,120]
[400395941,1767509773963,-361.94235483,0.00048,120]
[400395942,1767509774040,-1158.3230101,0.000481,120]
[400395943,1767509774107,-2268.41750596,0.0004825,120]
[400395944,1767509774170,-9802.10266569,0.0004826,120]
[400395945,1767509774233,-200.0,0.00048264,120]
[400395946,1767509774298,-1595.0,0.000483,120]
[400395947,1767509774364,-153.0,0.000483,120]
[400395948,1767509774429,-196.35926837,0.000484,120]
[400395949,1767509774494,-500.0,0.000485,120]
[400395950,1767509774565,-157.8,0.000485,30]
[400395951,1767509774648,-375.76771932,0.000485,120]
[400395952,1767509774722,-581.62,0.00048573,60]
[400395953,1767509774791,-304.5439451,0.00048671,116]
[400395954,1767509774859,-152.0,0.000487,120]
[400395955,1767509774939,-100000.0,0.0004877,30]
[400395956,1767509775015,-51767.67723613,0.0004877,30]
[400395957,1767509775086,-1049.15,0.0004884,120]
[400395958,1767509775156,-7194.63526049,0.00048875,60]
[400395959,1767509775226,-7680.31485822,0.00048875,60]
[400395960,1767509775298,-3535555.22419164,0.0004888,120]
[400395962,1767509780465,-213.1798617,0.00035616,31]
[400395963,1767509780538,-355.2997695,0.00041096,57]
[400395964,1767509780652,-1464444.77580836,0.0004888,120]
[400395965,1767509780721,-4534986.74456044,0.0004888,120]
[400395966,1767509794107,-292.31064726,0.00041703,31]
[400395967,1767509794178,-258.29367313,0.00041703,31]
[400395968,1767509794256,-157.10109624,0.00043272,31]
[400395969,1767509794363,-432.0585127,0.00043279,31]
[400395970,1767509794433,-377.0954227,0.00043279,31]
[400395971,1767509794512,-465013.25543956,0.0004888,120]
[400395972,1767509794593,-5000000.0,0.0004888,120]
[400395973,1767509794666,-3730.82015487,0.00048889,120]
[400395974,1767509794742,-156.87067086,0.000489,120]
[400395975,1767509794827,-863.53201342,0.000489,120]
[400395976,1767509794901,-1544.42,0.000489,120]
[400395977,1767509794967,-208.0,0.0004899,30]
[400395978,1767509795041,-385.53842263,0.00048998,120]
[400395979,1767509795104,-790.72093642,0.00049,30]
[400395980,1767509795166,-1825.00684286,0.00049,120]
[400395981,1767509795228,-500.0,0.00049,120]
[400395982,1767509795290,-150.0,0.00049,120]
[400395983,1767509795354,-1666.0,0.00049,120]
[400395984,1767509795420,-1545.18746183,0.00049,60]
[400395985,1767509795483,-5000.0,0.00049,120]
[400395986,1767509795546,-310.01258997,0.00049,120]
[400395987,1767509795612,-156.24049278,0.00049,120]
[400395988,1767509795678,-330.30529588,0.00049,30]
[400395989,1767509795744,-2122.64730827,0.00049,120]
[400395990,1767509795807,-3467.17780788,0.00049,120]
[400395991,1767509795874,-153.0,0.000491,120]
[400395992,1767509795937,-12798.99009435,0.00049247,120]
[400395993,1767509796002,-713.82990712,0.00049315,120]
[400395994,1767509796068,-200.0,0.00049325,120]
[400395995,1767509796132,-197.38,0.00049393,120]
[400395996,1767509796196,-152.0,0.000494,120]
[400395997,1767509796259,-315.1998799,0.00049437,118]
[400395998,1767509796328,-238659.2576,0.00049444,30]
[400395999,1767509796397,-45955.3272,0.00049444,120]
[400396000,1767509796468,-500.0,0.000495,120]
[400396001,1767509796536,-500.0,0.000495,120]
[400396002,1767509796599,-50000.0,0.000495,33]
[400396003,1767509796658,-7546.37254794,0.000495,120]
[400396004,1767509796717,-1030.31143304,0.000495,120]
[400396005,1767509796959,-416.19218803,0.000496,120]
[400396006,1767509797029,-1420.23,0.00049613,120]
[400396007,1767509797093,-2014.0,0.0004978,71]
[400396008,1767509797155,-676.39363654,0.000498,120]
[400396009,1767509797215,-1259.94765259,0.000498,30]
[400396010,1767509797277,-816.28176986,0.000498,120]
[400396011,1767509797341,-5101.44001998,0.000498,120]
[400396012,1767509797405,-153.0,0.000498,120]
[400396013,1767509797469,-290.81,0.0004986,60]
[400396014,1767509797539,-2000.0,0.0004986,63]
[400396015,1767509797611,-135847.44128139,0.0004988,30]
[400396016,1767509807504,-166.66,0.00039486,30]
[400396017,1767509807585,-166.66,0.00040317,30]
[400396018,1767509807663,-166.66,0.00041148,30]
[400396019,1767509807736,-216.93983856,0.00041703,31]
[400396020,1767509807816,-237.26707453,0.00041703,31]
[400396021,1767509807883,-166.66,0.0004198,30]
[400396022,1767509807952,-166.66,0.00042811,30]
[400396023,1767509808054,-500.0,0.00043279,31]
[400396024,1767509808120,-602.6852373,0.00043279,31]
[400396025,1767509808183,-489.76390839,0.00043279,31]
[400396026,1767509808247,-493.39187085,0.00043279,31]
[400396027,1767509808316,-420.45443327,0.00043279,31]
[400396028,1767509808388,-182.05817695,0.00043279,31]
[400396029,1767509808454,-166.66,0.00043642,30]
[400396030,1767509808523,-29674.03826141,0.0004988,30]
[400396031,1767509808587,-257.47680497,0.000499,30]
[400396032,1767509808660,-157.8,0.000499,30]
[400396033,1767509808738,-3248.15428244,0.0004999,120]
[400396034,1767509808805,-2608.38047147,0.0004999,120]
[400396035,1767509808874,-200.0,0.0005,120]
[400396036,1767509808943,-150.0,0.0005,40]
[400396037,1767509809011,-172.77897391,0.0005,120]
[400396038,1767509809076,-3109.30241465,0.0005,120]
[400396039,1767509809137,-507.51693461,0.0005,120]
[400396040,1767509809197,-1368.5026648,0.0005,120]
[400396041,1767509809258,-1087.26330952,0.0005,120]
[400396042,1767509809323,-225.58449997,0.0005,120]
[400396043,1767509809390,-500.0,0.0005,30]
[400396044,1767509809461,-1000.0,0.0005,120]
[400396045,1767509809526,-500.0,0.0005,120]
[400396046,1767509809590,-200.0,0.0005,120]
[400396047,1767509809659,-200.4974792,0.0005,120]
[400396048,1767509809732,-2500.0,0.0005,30]
[400396049,1767509809808,-500.0,0.0005,120]
[400396050,1767509809886,-476.60526379,0.0005,120]
[400396051,1767509809966,-150.0,0.0005,120]
[400396052,1767509810044,-3000.0,0.0005,120]
[400396053,1767509810119,-2480.0,0.0005,120]
[400396054,1767509810191,-1060.26687,0.0005,120]
[400396055,1767509810259,-497.0,0.0005,120]
[400396056,1767509810323,-150.0,0.0005,120]
[400396057,1767509810389,-343.10898709,0.0005,120]
[400396058,1767509810453,-8344.68195218,0.0005,120]
[400396059,1767509810520,-1001.32718,0.0005,120]
[400396060,1767509810589,-42511.25750797,0.0005,30]
[400396061,1767509810656,-5534.46784007,0.0005,120]
[400396062,1767509810718,-2000.0,0.0005,120]
[400396063,1767509810781,-4750.0,0.0005,120]
[400396064,1767509810849,-790.48337597,0.0005,120]
[400396065,1767509810917,-200.0,0.0005,120]
[400396066,1767509810981,-854.49387406,0.0005,120]
[400396067,1767509811044,-1290.15809008,0.0005,120]
[400396068,1767509811108,-1000.0,0.0005,60]
[400396069,1767509811172,-308.24,0.0005,120]
[400396070,1767509811236,-3692.45317652,0.0005,40]
[400396071,1767509811301,-1055.1678,0.0005,120]
[400396072,1767509811365,-2936.74480604,0.0005,120]
[400396073,1767509811431,-653.68539724,0.0005,120]
[400396074,1767509811496,-565.75888687,0.0005,120]
[400396075,1767509811568,-5001.78551984,0.0005,120]
[400396076,1767509811642,-1531.95501391,0.0005,120]
[400396077,1767509811707,-3164.90946708,0.0005,120]
[400396078,1767509811770,-1106.81089084,0.0005,120]
[400396079,1767509811835,-178.10863096,0.0005,120]
[400396080,1767509811897,-385.844166,0.0005,120]
[400396081,1767509811959,-1000.0,0.000501,120]
[400396082,1767509812026,-337.07,0.00050178,120]
[400396083,1767509812093,-152.0,0.000502,120]
[400396084,1767509812156,-326.09005771,0.00050202,120]
[400396085,1767509812216,-1000.0,0.00050382,120]
[400396086,1767509812277,-200.0,0.00050385,120]
[400396087,1767509812342,-960.12803798,0.000505,120]
[400396088,1767509812410,-57000.0,0.000505,35]
[400396089,1767509812678,-153.0,0.000506,120]
[400396090,1767509812738,-337.20954435,0.00050968,120]
[400396091,1767509812800,-150.0,0.00051,40]
[400396092,1767509812860,-1000.0,0.00051,120]
[400396093,1767509812919,-500.0,0.00051,120]
[400396094,1767509812979,-150.0,0.00051,120]
[400396095,1767509813041,-152.0,0.00051,120]
[400396096,1767509813104,-2000.0,0.00051,120]
[400396097,1767509813168,-384.15963286,0.00051,120]
[400396098,1767509813234,-723.88470966,0.00051,120]
[400396099,1767509813300,-300.75918393,0.0005109,120]
[400396100,1767509813369,-221.0,0.0005111,120]
[400396101,1767509813438,-1654.38253428,0.000512,120]
[400396102,1767509813506,-12798.98909435,0.00051247,120]
[400396103,1767509813582,-153.0,0.000513,120]
[400396104,1767509813656,-1078.0,0.00051397,120]
[400396105,1767509813737,-200.0,0.00051446,120]
[400396106,1767509813812,-5000000.0,0.000515,120]
[400396107,1767509813886,-767743.19587157,0.000515,120]
[400396108,1767509832467,-150.27435043,0.00028201,47]
[400396109,1767509832535,-150.77598022,0.00030619,55]
[400396110,1767509832605,-151.42556669,0.00033036,63]
[400396111,1767509832672,-152.19480351,0.00035454,71]
[400396112,1767509832737,-153.06733115,0.00037872,79]
[400396113,1767509832807,-154.03211151,0.00040289,87]
[400396114,1767509832875,-155.08104123,0.00042707,95]
[400396115,1767509832982,-156.20784178,0.00045124,104]
[400396116,1767509833055,-157.40746185,0.00047542,112]
[400396117,1767509833127,-158.67572264,0.0004996,120]
[400396118,1767509833201,-4232256.80412843,0.000515,120]
[400396119,1767509833272,-1766204.05366056,0.000515,120]
[400396120,1767509836535,-3233795.94633944,0.000515,120]
[400396121,1767509836606,-2380.0,0.000516,120]
[400396122,1767509836680,-2380.0,0.000516,120]
[400396123,1767509836746,-553627.87,0.0005169,120]
[400396124,1767509836814,-157.8,0.000517,30]
[400396125,1767509836883,-225.93788913,0.000517,120]
[400396126,1767509836949,-152.0,0.000518,120]
[400396127,1767509837019,-1662.0,0.0005198,110]
[400396128,1767509837089,-200.0,0.00052,40]
[400396129,1767509837158,-161.85177793,0.00052,120]
[400396130,1767509837228,-1000.0,0.00052,120]
[400396131,1767509837296,-500.0,0.00052,120]
[400396132,1767509837364,-200.0,0.00052,120]
[400396133,1767509837429,-293132.63460837,0.00052,30]
[400396134,1767509837492,-150.0,0.00052,120]
[400396135,1767509837559,-186104.55879716,0.00052,60]
[400396136,1767509837627,-6362.5,0.00052,120]
[400396137,1767509837690,-895.8371,0.00052,60]
[400396138,1767509837752,-1211.32231592,0.00052,120]
[400396139,1767509837814,-2000.0,0.00052,120]
[400396140,1767509837879,-167.7602375,0.00052,120]
[400396141,1767509837954,-307.07375719,0.00052,120]
[400396142,1767509838032,-202.23,0.00052,120]
[400396143,1767509838101,-1420.23,0.00052093,120]
[400396144,1767509838172,-153.0,0.000521,120]
[400396145,1767509838237,-160.00909214,0.00052377,120]
[400396146,1767509838301,-2043.0,0.0005246,75]
[400396147,1767509838366,-654.05309636,0.00052475,120]
[400396148,1767509838435,-2987.11601809,0.000525,120]
[400396149,1767509838497,-221.956215,0.00052507,120]
[400396150,1767509838563,-152.0,0.000526,120]
[400396151,1767509838627,-1018547.22,0.0005269,120]
[400396152,1767509838701,-1892.04309642,0.00052799,120]
[400396153,1767509838774,-566.86489382,0.00052799,120]
[400396154,1767509838844,-587.22671262,0.00052799,120]
[400396155,1767509838913,-153.0,0.000528,120]
[400396156,1767509838982,-112757.46559113,0.0005281,120]
[400396157,1767509839051,-2622.06,0.00052877,120]
[400396158,1767509839115,-756.3280026,0.000529,120]
[400396159,1767509839182,-242.08907047,0.00053,120]
[400396160,1767509839247,-1000.0,0.00053,120]
[400396161,1767509839313,-150.0,0.00053,120]
[400396162,1767509839384,-8358.55246356,0.00053,90]
[400396163,1767509839453,-908.0,0.00053,120]
[400396164,1767509839518,-1088.00002307,0.00053,120]
[400396165,1767509839594,-10000.0,0.00053,120]
[400396166,1767509839676,-200000.0,0.00053,120]
[400396167,1767509839741,-1684.0,0.00053,120]
[400396168,1767509839811,-10491.1627522,0.00053,61]
[400396169,1767509839880,-1595.0,0.00053,120]
[400396170,1767509839948,-1688.43346357,0.00053,120]
[400396171,1767509840016,-696.44928105,0.00053013,120]
[400396172,1767509840084,-51966.02363,0.0005333,60]
[400396173,1767509840152,-152.0,0.000534,120]
[400396174,1767509840232,-300.0,0.00053425,120]
[400396175,1767509840298,-775.25967029,0.000535,120]
[400396176,1767509840369,-153.0,0.000536,120]
[400396177,1767509840444,-250.0,0.00053657,60]
[400396178,1767509840516,-152675.01257506,0.0005369,60]
[400396179,1767509840590,-197.38,0.00053719,120]
[400396180,1767509840668,-2385.04476309,0.000538,120]
[400396181,1767509840749,-756.0,0.000538,120]
[400396182,1767509840829,-555.8055399,0.000538,120]
[400396183,1767509840911,-4961.15401164,0.0005385,120]
[400396184,1767509840994,-250.0,0.00053899,30]
[400396185,1767509841073,-2150.44409733,0.000539,30]
[400396186,1767509841147,-250.0,0.00053919,120]
[400396187,1767509841219,-111670.29311795,0.0005392,120]
[400396194,1767510017806,-255555.0,0.00043,120]
[400396195,1767510017911,-4744445.0,0.000515,120]
[400396196,1767510022182,-255555.0,0.000515,120]
[400396197,1767510022245,-959.20916,0.000525,120]
[400396198,1767510022316,-4743485.79084,0.000535,120]
[400396200,1767510083488,500.0,0.00043273,120]
[400396201,1767510083719,493.51167989,0.00043273,120]
[400396202,1767510087668,192.29491943,0.00043273,120]
[400396203,1767510087949,500.0,0.00043273,120]
[400396204,1767510088183,225.46006905,0.00043273,120]
[400396205,1767510090073,500.0,0.00043273,120]
[400396206,1767510090310,500.0,0.00043273,120]
[400396207,1767510090547,500.0,0.00043273,120]
[400396208,1767510090782,316.53712287,0.00043273,120]
[400396209,1767510094560,167.64467838,0.00043273,120]
[400396210,1767510096499,160.2025924,0.00043273,120]
[400396211,1767510096573,213.76100598,0.00043273,120]
[400396212,1767510097735,282.91852755,0.00043273,120]
[400396213,1767510098469,206.54709228,0.00043273,120]
[400396214,1767510099309,188.0,0.00043273,30]
[400396215,1767510100338,500.0,0.00043273,120]
[400396216,1767510100580,557.73301474,0.00043273,120]
[400396217,1767510101062,594.44595358,0.00043273,120]
[400396218,1767510101132,401.42691694,0.00043273,120]
[400396220,1767510101438,337.68709256,0.00043273,120]
[400396222,1767510102515,378.36600124,0.00043273,120]
[400396223,1767510104416,500.0,0.00043273,120]
[400396224,1767510104642,342.894607,0.00043273,120]
[400396225,1767510106181,467.20789672,0.00043273,120]
[400396226,1767510106589,500.0,0.00043273,120]
[400396227,1767510106748,609.9664372,0.00043273,120]
[400396228,1767510110218,171.85106735,0.00043273,120]
[400396229,1767510111392,167.46373501,0.00043273,120]
[400396230,1767510111679,500.0,0.00043273,120]
[400396231,1767510111942,500.0,0.00043273,120]
[400396232,1767510112175,207.78960628,0.00043273,120]
[400396233,1767510112351,163.64502008,0.00043273,120]
[400396234,1767510114188,606.98634836,0.00043273,120]
[400396235,1767510115808,634.27126126,0.00043273,120]
[400396236,1767510116070,508.15599883,0.00043273,120]
[400396237,1767510117442,512.58994617,0.00043273,120]
[400396238,1767510117886,500.0,0.00043273,120]
[400396239,1767510118134,500.0,0.00043273,120]
[400396240,1767510118364,500.0,0.00043273,120]
[400396241,1767510118573,154.36586153,0.00043273,120]
[400396242,1767510118639,648.78063684,0.00043273,120]
[400396243,1767510121964,580.67431026,0.00043273,120]
[400396244,1767510124108,160.49796195,0.00043273,120]
[400396245,1767510124684,610.95413723,0.00043273,120]
[400396246,1767510129242,431.47293341,0.00043273,120]
[400396247,1767510130995,177.74475865,0.00043273,120]
[400396248,1767510134757,162.96399718,0.00043273,120]
[400396249,1767510136216,153.43026076,0.00043273,120]
[400396250,1767510137616,472.63964607,0.00043273,120]
[400396251,1767510152793,183.57713893,0.00043273,120]
[400396252,1767510153735,432.73867628,0.00043273,120]
[400396253,1767510154436,492.49033932,0.00043273,120]
[400396254,1767510154556,480.18916892,0.00043273,120]
[400396255,1767510156234,391.18690696,0.00043273,120]
[400396256,1767510158187,411.63934158,0.00043273,120]
[400396257,1767510158285,186.0,0.00043273,30]
[400396258,1767510158397,158.78492488,0.00043273,120]
[400396259,1767510159698,1003.74563027,0.00043273,120]
[400396260,1767510160213,500.0,0.00043273,120]
[400396261,1767510160478,317.84291401,0.00043273,120]
[400396262,1767510161214,271.62356664,0.00043273,120]
[400396263,1767510162184,500.0,0.00043273,120]
[400396264,1767510162445,396.18305016,0.00043273,120]
[400396265,1767510162665,9499.0,0.00018,2]
[400396266,1767510163158,156.23951245,0.00043273,120]
[400396267,1767510164058,341.42626035,0.00043273,120]
[400396268,1767510165244,576.99921104,0.00043273,120]
[400396269,1767510165469,421.65182424,0.00043273,120]
[400396270,1767510167175,353.7588171,0.00043273,120]
[400396271,1767510168780,500.0,0.00043273,120]
[400396272,1767510169021,500.0,0.00043273,120]
[400396273,1767510169303,500.0,0.00043273,120]
[400396274,1767510169540,591.882561,0.00043273,120]
[400396275,1767510169797,2954.0,0.00043273,30]
[400396276,1767510171515,221.54512658,0.00043273,120]
[400396277,1767510173655,416.40560871,0.00043273,120]
[400396278,1767510174277,500.0,0.00043273,120]
[400396279,1767510174515,500.0,0.00043273,120]
[400396280,1767510174767,500.0,0.00043273,120]
[400396281,1767510175075,540.051188,0.00043273,120]
[400396282,1767510175748,520.1695208,0.00043273,120]
[400396283,1767510177408,239.9373683,0.00043273,120]
[400396284,1767510179252,185.0,0.00043273,30]
[400396285,1767510179970,500.0,0.00043273,120]
[400396286,1767510180546,500.0,0.00043273,120]
[400396287,1767510180797,500.0,0.00043273,120]
[400396288,1767510181036,500.0,0.00043273,120]
[400396289,1767510181273,500.0,0.00043273,120]
[400396290,1767510181502,500.0,0.00043273,120]
[400396291,1767510181726,500.0,0.00043273,120]
[400396292,1767510181969,500.0,0.00043273,120]
[400396293,1767510182220,500.0,0.00043273,120]
[400396294,1767510182588,500.0,0.00043273,120]
[400396295,1767510182882,500.0,0.00043273,120]
[400396296,1767510183180,500.0,0.00043273,120]
[400396297,1767510183394,630.5389962,0.00043273,120]
[400396298,1767510185295,500.0,0.00043273,120]
[400396299,1767510185529,500.0,0.00043273,120]
[400396300,1767510185753,500.0,0.00043273,120]
[400396301,1767510185980,500.0,0.00043273,120]
[400396302,1767510186211,371.48000972,0.00043273,120]
[400396303,1767510186534,322.61790724,0.00043273,120]
[400396304,1767510187760,575.89060538,0.00043273,120]
[400396305,1767510188981,500.0,0.00043273,120]
[400396306,1767510189223,211.70839979,0.00043273,120]
[400396307,1767510190570,204.37578507,0.00043273,120]
[400396308,1767510193546,275.26525637,0.00043273,120]
[400396309,1767510194435,1186.12196365,0.00043273,30]
[400396310,1767510194835,500.0,0.00043273,120]
[400396311,1767510194905,164.60579784,0.00043273,120]
[400396312,1767510195061,500.0,0.00043273,120]
[400396313,1767510195145,155.8992764,0.00043273,120]
[400396314,1767510195317,159.1754443,0.00043273,120]
[400396315,1767510197495,500.0,0.00043273,120]
[400396316,1767510197566,177.39567491,0.00043273,120]
[400396317,1767510197728,398.43969016,0.00043273,120]
[400396318,1767510198146,351.61432591,0.00043273,120]
[400396319,1767510200873,243.94758751,0.00043273,120]
[400396320,1767510202580,466.7754471,0.00043273,120]
[400396321,1767510205341,165.29320096,0.00043273,120]
[400396322,1767510206009,371.49543017,0.00043273,120]
[400396323,1767510209014,500.0,0.00043273,120]
[400396324,1767510209273,500.0,0.00043273,120]
[400396325,1767510209529,500.0,0.00043273,120]
[400396326,1767510209820,500.0,0.00043273,120]
[400396327,1767510209982,500.0,0.00043273,120]
[400396328,1767510210224,500.0,0.00043273,120]
[400396329,1767510210451,447.99158975,0.00043273,120]
[400396331,1767510211630,170.09471521,0.00043273,120]
[400396332,1767510212419,500.0,0.00043273,120]
[400396333,1767510212643,352.43604015,0.00043273,120]
[400396334,1767510213827,170.77547319,0.00043273,120]
[400396335,1767510214475,500.0,0.00043273,120]
[400396336,1767510214717,160.63956227,0.00043273,120]
[400396337,1767510215195,165.23767584,0.00043273,120]
[400396338,1767510217536,234.82969944,0.00043273,120]
[400396339,1767510218269,500.0,0.00043273,120]
[400396340,1767510218515,500.0,0.00043273,120]
[400396341,1767510218754,508.84270126,0.00043273,120]
[400396342,1767510219441,159.9392,0.00043273,120]
[400396343,1767510220850,216.3633341,0.00043273,120]
[400396344,1767510222205,151.0,0.00043273,65]
[400396345,1767510222530,151.0,0.00043273,65]
[400396346,1767510222734,500.0,0.00043273,120]
[400396347,1767510222808,151.0,0.00043273,65]
[400396348,1767510222980,500.0,0.00043273,120]
[400396349,1767510223400,500.0,0.00043273,120]
[400396350,1767510223484,151.0,0.00043273,65]
[400396351,1767510223568,552.33431249,0.00043273,120]
[400396352,1767510223813,151.0,0.00043273,65]
[400396353,1767510224106,254.846658,0.00043273,65]
[400396354,1767510225610,1650.92892876,0.00043273,120]
[400396355,1767510226938,161.07736983,0.00043273,120]
[400396356,1767510227663,185.00094995,0.00043273,120]
[400396357,1767510227728,441.88073594,0.00043273,120]
[400396358,1767510229621,226.84964229,0.00043273,120]
[400396359,1767510231480,169.93833943,0.00043273,120]
[400396360,1767510233575,178.89338999,0.00043273,120]
[400396361,1767510235442,192.15726703,0.00043273,120]
[400396362,1767510235740,500.0,0.00043273,120]
[400396363,1767510236302,401.2546,0.00043273,120]
[400396364,1767510236561,175.9325678,0.00043273,120]
[400396365,1767510238098,1000.0,0.00043273,120]
[400396366,1767510238327,1000.0,0.00043273,120]
[400396367,1767510238394,170.55121444,0.00043273,120]
[400396368,1767510238553,516.28609448,0.00043273,120]
[400396369,1767510240899,282.4845579,0.00043273,120]
[400396370,1767510242231,194.57308383,0.00043273,120]
[400396371,1767510245594,382.75547013,0.00043273,90]
[400396372,1767510246437,154.10417481,0.00043273,120]
[400396373,1767510246515,876.31538607,0.00043273,120]
[400396374,1767510248637,165.90415376,0.00043273,120]
[400396375,1767510248761,279.3243335,0.00043273,120]
[400396376,1767510249217,185.0,0.00043273,30]
[400396377,1767510250566,210.18101862,0.00043273,120]
[400396378,1767510251569,296.54669546,0.00043273,120]
[400396379,1767510252447,254.85652612,0.00043273,120]
[400396380,1767510253482,308.72174102,0.00043273,120]
[400396381,1767510253562,162.0932336,0.00043273,120]
[400396382,1767510255287,205.92488746,0.00043273,60]
[400396383,1767510256254,273.97034076,0.00043273,120]
[400396384,1767510257559,951.79482885,0.00043273,60]
[400396385,1767510257718,594.22944026,0.00043273,120]
[400396386,1767510258441,3325.0,0.00043273,30]
[400396387,1767510259602,574.50013893,0.00043273,120]
[400396388,1767510259879,174.911416,0.00043273,65]
[400396389,1767510260661,370.00051843,0.00043273,120]
[400396390,1767510261208,288.00336086,0.00043273,120]
[400396391,1767510261281,179.83866963,0.00043273,120]
[400396392,1767510262484,217.80064696,0.00043273,120]
[400396393,1767510262639,394.40580211,0.00043273,120]
[400396394,1767510263135,491.9528418,0.00043273,120]
[400396395,1767510263249,500.0,0.00043273,120]
[400396396,1767510263501,500.0,0.00043273,120]
[400396397,1767510263595,175.2260357,0.00043273,120]
[400396398,1767510263804,500.0,0.00043273,120]
[400396399,1767510264052,192.16058,0.00043273,120]
[400396400,1767510264134,500.0,0.00043273,120]
[400396401,1767510264318,277.49106612,0.00043273,120]
[400396402,1767510264402,500.0,0.00043273,120]
[400396403,1767510264586,500.0,0.00043273,120]
[400396404,1767510264903,159.26748118,0.00043273,120]
[400396405,1767510265088,153.240552,0.00043273,65]
[400396406,1767510266561,434.58227006,0.00043273,120]
[400396407,1767510268641,500.0,0.00043273,120]
[400396408,1767510268881,500.0,0.00043273,120]
[400396409,1767510269114,518.52173552,0.00043273,120]
[400396410,1767510269187,500.0,0.00043273,120]
[400396411,1767510269386,500.0,0.00043273,120]
[400396412,1767510269602,3371.48151252,0.00043273,30]
[400396413,1767510269682,178.83711928,0.00043273,120]
[400396414,1767510270573,360.76846061,0.00043273,120]
[400396415,1767510271105,598.79715869,0.00043273,120]
[400396416,1767510271457,500.0,0.00043273,120]